bitfinex/quotes_SOLUSD_20241019
["timestamp","ask_amount","ask_price","bid_price","bid_amount"]
[1729321320820,6.465,154.68,154.63,6.4669]
[1729321337452,23.776884,154.69,154.63,6.4669]
[1729321337645,6.4649,154.68,154.63,6.4669]
[1729321344244,6.4657,154.67,154.62,22.6356]
[1729321344652,6.4657,154.67,154.63,6.4669]
[1729321345562,23.776884,154.69,154.63,6.4669]
[1729321345741,6.465,154.68,154.63,6.4669]
[1729321347467,6.4659,154.66,154.62,16.1682]
[1729321347672,6.4654,154.67,154.62,22.6355]
[1729321348052,6.4654,154.67,154.63,6.4669]
[1729321353168,6.465,154.68,154.63,6.4669]
[1729321366675,6.465,154.68,154.6,20.0]
[1729321366876,6.465,154.68,154.63,22.6343]
[1729321368265,6.465,154.68,154.64,6.4665]
[1729321376691,30.241484,154.69,154.64,6.4665]
[1729321384293,23.776884,154.67,154.59,6.4165]
[1729321384473,6.4663,154.65,154.6,6.4679]
[1729321385002,6.4663,154.65,154.6,22.6383]
[1729321385978,20.0,154.68,154.6,22.6383]
[1729321386303,6.4665,154.65,154.6,22.6383]
[1729321386594,20.0,154.68,154.61,6.4678]
[1729321386902,6.4658,154.66,154.61,6.4678]
[1729321395008,6.4657,154.67,154.62,6.4673]
[1729321395507,45.571684,154.69,154.64,6.4666]
[1729321395689,6.4645,154.69,154.64,6.4665]
[1729321418443,6.465,154.68,154.64,6.4665]
[1729321420404,6.4657,154.67,154.63,16.1666]
[1729321420810,6.4663,154.65,154.6,42.6386]
[1729321421020,6.4663,154.65,154.6,22.6386]
[1729321422621,6.467,154.63,154.6,16.1703]
[1729321422813,6.0691,154.68,154.57,16.1737]
[1729321423025,6.4682,154.61,154.54,22.6563]
[1729321423208,6.4673,154.63,154.57,6.4695]
[1729321423533,6.4673,154.63,154.58,6.4689]
[1729321424030,43.776884,154.67,154.54,22.6563]
[1729321424332,6.4665,154.65,154.6,6.468]
[1729321429833,23.776884,154.67,154.58,16.6228]
[1729321430043,6.4658,154.66,154.61,6.4675]
[1729321433736,6.4658,154.66,154.62,6.4674]
[1729321439648,6.4658,154.66,154.61,16.1697]
[1729321439824,6.4658,154.66,154.61,22.6374]
[1729321440140,23.776884,154.68,154.59,52.3436]
[1729321440343,23.776884,154.68,154.62,6.4671]
[1729321440638,6.4658,154.66,154.62,6.4671]
[1729321443736,6.4654,154.67,154.63,6.467]
[1729321447146,6.4654,154.67,154.62,16.1686]
[1729321447347,6.4654,154.67,154.62,22.6359]
[1729321460263,23.776884,154.68,154.62,16.1686]
[1729321460463,6.4666,154.64,154.6,6.4683]
[1729321462539,6.4666,154.64,154.59,42.6397]
[1729321462851,6.4666,154.64,154.59,36.1712]
[1729321463151,6.4666,154.64,154.6,6.4681]
[1729321467246,6.467,154.63,154.59,22.6398]
[1729321475752,6.4668,154.64,154.59,22.6398]
[1729321481758,6.4661,154.66,154.61,6.4678]
[1729321486284,23.776884,154.66,154.61,6.4678]
[1729321486587,6.4661,154.66,154.61,6.4678]
[1729321489467,6.4661,154.66,154.62,6.4674]
[1729321497290,6.4661,154.66,154.61,22.6373]
[1729321525801,6.4661,154.66,154.62,6.4673]
[1729321528723,26.4654,154.67,154.62,6.4673]
[1729321529199,6.4654,154.67,154.62,6.4673]
[1729321530019,15.2529,154.7,154.65,6.4662]
[1729321530020,6.4648,154.69,154.65,6.4662]
[1729321530723,30.241084,154.7,154.65,6.466]
[1729321531221,30.241084,154.7,154.65,22.6306]
[1729321532027,6.4646,154.69,154.65,22.6306]
[1729321535707,6.4646,154.69,154.65,16.1646]
[1729321545627,23.776884,154.7,154.62,22.3426]
[1729321545816,6.4653,154.68,154.63,6.4669]
[1729321566742,6.4651,154.68,154.63,6.4669]
[1729321578153,6.4656,154.67,154.62,22.6355]
[1729321578336,6.4656,154.67,154.62,16.1684]
[1729321579353,6.4656,154.67,154.63,6.4669]
[1729321581354,6.465,154.68,154.63,6.4669]
[1729321596579,6.4654,154.67,154.63,6.4669]
[1729321597371,6.4654,154.67,154.62,22.6358]
[1729321597673,6.4658,154.66,154.62,16.1684]
[1729321607483,20.0,154.68,154.62,16.1684]
[1729321607665,6.4662,154.65,154.62,16.1684]
[1729321608683,6.4659,154.66,154.62,16.1684]
[1729321629891,6.4654,154.67,154.62,22.6356]
[1729321642603,6.4658,154.66,154.62,22.6356]
[1729321644011,3.4658,154.66,154.62,22.6356]
[1729321644197,20.0,154.68,154.62,22.6356]
[1729321645414,6.4658,154.66,154.62,22.6356]
[1729321671616,6.466,154.66,154.61,6.4676]
[1729321672636,6.4663,154.65,154.6,6.4682]
[1729321677237,6.4674,154.63,154.59,16.1712]
[1729321680240,6.4674,154.63,154.59,22.6398]
[1729321688649,6.4667,154.64,154.59,22.6398]
[1729321690747,15.7138,154.66,154.6,6.4679]
[1729321691062,6.4658,154.66,154.61,6.4675]
[1729321707865,6.4654,154.67,154.62,6.4671]
[1729321708453,5.257456,154.68,154.63,6.4666]
[1729321708653,5.257456,154.68,154.59,20.0]
[1729321708843,5.257456,154.68,154.64,6.4664]
[1729321710348,5.257456,154.68,154.65,6.4659]
[1729321714177,6.4641,154.7,154.65,22.6314]
[1729321721773,20.0,154.71,154.62,16.2625]
[1729321721977,6.4641,154.7,154.65,6.4658]
[1729321722768,6.4646,154.69,154.65,22.6306]
[1729321727376,43.776884,154.71,154.62,16.2625]
[1729321727579,6.4656,154.67,154.62,22.6358]
[1729321727965,6.466,154.66,154.62,16.1684]
[1729321728278,6.4662,154.65,154.61,6.4678]
[1729321728455,20.0,154.69,154.6,6.4682]
[1729321728654,20.0,154.67,154.6,6.4682]
[1729321728965,23.776884,154.66,154.6,6.4682]
[1729321729164,6.4666,154.64,154.59,22.64]
[1729321734074,6.4657,154.66,154.6,6.4679]
[1729321739680,6.4662,154.65,154.6,6.4679]
[1729321740982,23.776884,154.68,154.62,6.4674]
[1729321740983,26.4657,154.67,154.62,6.4674]
[1729321741567,20.0,154.67,154.62,6.4674]
[1729321741780,6.4658,154.66,154.62,6.4674]
[1729321742990,6.4655,154.67,154.62,6.4674]
[1729321743172,6.4655,154.67,154.61,16.1695]
[1729321743376,6.4655,154.67,154.63,6.467]
[1729321749597,20.0,154.69,154.63,6.467]
[1729321749884,6.465,154.68,154.63,6.467]
[1729321761392,32.2725,154.7,154.61,16.1695]
[1729321761600,32.2725,154.7,154.62,6.4671]
[1729321761770,6.4656,154.67,154.62,6.4671]
[1729321762180,6.4658,154.66,154.62,6.4671]
[1729321768609,6.4658,154.66,154.61,22.6372]
[1729321769191,6.4666,154.64,154.61,16.1695]
[1729321769389,20.0,154.68,154.59,6.4683]
[1729321769689,6.4671,154.63,154.58,22.6414]
[1729321770392,6.4687,154.59,154.55,45.5582]
[1729321770596,6.4689,154.59,154.54,6.4707]
[1729321782798,6.4691,154.58,154.54,6.4707]
[1729321790610,6.4686,154.6,154.54,6.4707]
[1729321791818,6.4687,154.59,154.54,6.4707]
[1729321796023,6.4683,154.6,154.55,6.4701]
[1729321806238,43.776884,154.62,154.54,16.1763]
[1729321806539,6.469,154.59,154.54,22.6468]
[1729321806715,6.469,154.59,154.55,6.4703]
[1729321808437,6.469,154.59,154.54,16.1763]
[1729321808811,6.4692,154.58,154.54,22.647]
[1729321822048,6.4698,154.57,154.52,6.4715]
[1729321828629,6.4698,154.57,154.53,6.4712]
[1729321831257,6.4698,154.57,154.51,16.18]
[1729321831434,6.4698,154.57,154.52,6.4716]
[1729321859588,6.47,154.56,154.51,16.18]
[1729321859889,6.47,154.56,154.51,22.652]
[1729321860657,14.52191887,154.56,154.51,22.652]
[1729321860861,14.52101944,154.56,154.51,22.652]
[1729321861162,6.47,154.56,154.51,22.652]
[1729321861364,14.52101944,154.56,154.51,22.652]
[1729321861570,6.47,154.56,154.51,22.652]
[1729321864867,24.43035385,154.58,154.51,16.18]
[1729321865071,6.4696,154.57,154.52,16.179]
[1729321865267,6.4696,154.57,154.53,6.4711]
[1729321866084,14.51265385,154.59,154.5,25.0]
[1729321866275,14.51195385,154.6,154.55,6.47]
[1729321866473,14.51195385,154.6,154.55,16.1759]
[1729321867476,14.51195385,154.6,154.55,22.6459]
[1729321867678,14.51411703,154.6,154.55,22.6459]
[1729321871600,6.4684,154.6,154.55,22.6459]
[1729321871890,14.51413265,154.6,154.55,22.6459]
[1729321872504,6.4687,154.59,154.55,22.6459]
[1729321873708,6.4691,154.58,154.55,16.1759]
[1729321873881,23.776884,154.59,154.52,16.1787]
[1729321874088,8.04564577,154.58,154.52,16.1787]
[1729321874682,6.4699,154.57,154.52,22.65]
[1729321875699,6.4699,154.57,154.53,6.4711]
[1729321884509,6.4699,154.57,154.52,22.6502]
[1729321891303,23.776884,154.59,154.52,22.6502]
[1729321891501,6.47,154.56,154.52,16.1787]
[1729321891815,6.4699,154.56,154.52,16.1787]
[1729321895390,23.776884,154.57,154.51,6.4719]
[1729321895708,6.4704,154.55,154.51,6.4719]
[1729321915527,23.776884,154.57,154.5,25.0]
[1729321915528,6.472,154.51,154.5,25.0]
[1729321918416,30.248884,154.51,154.5,25.0]
[1729321920318,50.248884,154.51,154.5,25.0]
[1729321935847,30.248884,154.51,154.5,25.0]
[1729321936046,6.472,154.51,154.5,25.0]
[1729321937952,43.776884,154.53,154.5,25.0]
[1729321938324,6.4719,154.52,154.5,25.0]
[1729321940956,8.83242938,154.56,154.5,25.0]
[1729321941164,8.83242938,154.56,154.51,22.6514]
[1729321941165,6.74389963,154.56,154.51,22.6514]
[1729321941332,8.02082194,154.59,154.51,22.6514]
[1729321941537,8.02082194,154.59,154.52,6.4713]
[1729321942063,6.4696,154.57,154.52,6.4713]
[1729321945948,43.776884,154.59,154.51,16.4905]
[1729321946149,23.776884,154.57,154.54,16.1765]
[1729321946361,30.246384,154.57,154.52,6.4716]
[1729321947568,23.776884,154.58,154.54,22.6477]
[1729321947753,26.4687,154.59,154.54,22.6477]
[1729321948570,11.52965153,154.6,154.55,6.4703]
[1729321948777,6.4687,154.59,154.55,6.4703]
[1729321949151,5.06135153,154.6,154.55,6.4703]
[1729321950456,6.4687,154.59,154.55,6.4703]
[1729321957181,11.52965153,154.6,154.55,22.6458]
[1729321957377,11.52965153,154.6,154.56,6.4697]
[1729321957883,5.06135153,154.6,154.56,6.4697]
[1729321960266,5.06135153,154.6,154.53,6.2538]
[1729321960579,6.4674,154.63,154.57,6.4692]
[1729321963385,6.4674,154.63,154.57,6.4695]
[1729321965586,15.4509,154.65,154.59,6.4686]
[1729321965587,30.243584,154.64,154.59,6.4686]
[1729321965794,8.0092688,154.66,154.56,16.3891]
[1729321965996,14.4746688,154.67,154.62,6.4672]
[1729321966166,6.4659,154.66,154.61,22.6371]
[1729321966678,6.4654,154.67,154.62,6.4672]
[1729321969598,6.4658,154.66,154.62,6.4672]
[1729321969772,6.4658,154.66,154.61,22.637]
[1729321970090,6.4658,154.66,154.61,16.1693]
[1729321970291,6.4662,154.65,154.61,16.1693]
[1729321971468,23.776884,154.68,154.58,16.1725]
[1729321971675,6.4671,154.63,154.58,22.6415]
[1729321974798,36.164,154.67,154.58,22.6415]
[1729321974986,6.4671,154.63,154.58,22.6415]
[1729321978301,23.776884,154.66,154.58,16.1725]
[1729321978497,23.776884,154.64,154.59,6.4686]
[1729321978689,6.4671,154.63,154.59,6.4686]
[1729321982690,6.4671,154.63,154.58,16.1725]
[1729321983783,6.4671,154.63,154.58,22.6415]
[1729321985503,20.0,154.65,154.58,16.1725]
[1729321985808,6.4679,154.61,154.57,6.4695]
[1729321986608,6.4683,154.6,154.55,22.6456]
[1729321987276,6.4683,154.6,154.55,16.1755]
[1729321987480,6.4683,154.6,154.56,6.4698]
[1729321989407,6.4687,154.59,154.54,6.4707]
[1729321990108,6.4687,154.59,154.55,6.4703]
[1729321990692,6.4703,154.56,154.52,15.8288]
[1729321990889,6.4703,154.56,154.51,6.9097302]
[1729321991408,30.12956583,154.6,154.51,0.4377302]
[1729321991584,6.4696,154.57,154.52,6.4715]
[1729321993811,6.4699,154.56,154.51,6.9097302]
[1729321994511,6.4696,154.57,154.52,6.4715]
[1729322007621,20.0,154.59,154.51,0.4377302]
[1729322007929,26.4687,154.59,154.54,6.4707]
[1729322010824,6.4685,154.6,154.55,6.47]
[1729322019520,14.49909362,154.62,154.57,6.4694]
[1729322019716,6.4679,154.61,154.57,6.4694]
[1729322020835,6.4686,154.6,154.55,6.4702]
[1729322027639,14.50666767,154.6,154.55,6.4702]
[1729322030459,6.4686,154.6,154.55,6.4702]
[1729322030647,14.51034253,154.6,154.55,6.4702]
[1729322030845,6.4686,154.6,154.55,6.4702]
[1729322031243,14.51066125,154.6,154.55,6.4702]
[1729322032350,8.04206125,154.59,154.55,6.4702]
[1729322032657,14.51066125,154.6,154.55,6.4702]
[1729322033740,8.04206125,154.59,154.55,6.4702]
[1729322034347,6.4686,154.6,154.55,6.4702]
[1729322034538,14.51436544,154.6,154.55,6.4702]
[1729322041159,6.4686,154.6,154.55,6.4702]
[1729322041370,14.51706133,154.6,154.55,6.4702]
[1729322041552,8.04846133,154.59,154.55,6.4702]
[1729322044142,14.51706133,154.6,154.55,6.4702]
[1729322044654,6.4686,154.6,154.55,6.4702]
[1729322044843,8.04999979,154.59,154.55,6.4702]
[1729322045044,14.51859979,154.6,154.55,6.4702]
[1729322047246,8.04999979,154.59,154.55,6.4702]
[1729322047756,14.51859979,154.6,154.55,6.4702]
[1729322048363,14.51774278,154.6,154.55,6.4702]
[1729322048739,14.51774278,154.6,154.55,16.1759]
[1729322048943,8.04914278,154.6,154.56,6.4698]
[1729322049469,8.04914278,154.59,154.56,6.4698]
[1729322052662,8.05101344,154.59,154.56,6.4698]
[1729322056054,8.05148675,154.59,154.56,6.4698]
[1729322063650,6.4679,154.61,154.56,6.4698]
[1729322063882,8.05194412,154.59,154.56,6.4698]
[1729322071887,8.05194412,154.59,154.53,22.7674]
[1729322072072,8.05194412,154.59,154.57,6.4694]
[1729322075678,8.05687207,154.59,154.57,6.4694]
[1729322079474,6.4679,154.61,154.57,6.4694]
[1729322080899,8.05692612,154.59,154.57,6.4694]
[1729322081567,8.05692612,154.59,154.56,16.1742]
[1729322081568,14.52562612,154.59,154.54,6.4708]
[1729322084394,8.05692612,154.59,154.53,16.1777]
[1729322084588,14.52642612,154.58,154.53,22.6488]
[1729322088208,6.4695,154.58,154.53,22.6488]
[1729322088406,14.52306037,154.58,154.53,22.6488]
[1729322093114,8.05356037,154.58,154.51,32.7966302]
[1729322093319,8.05356037,154.58,154.51,0.4377302]
[1729322093499,8.05356037,154.59,154.51,0.4377302]
[1729322094299,8.05356037,154.59,154.52,32.3582]
[1729322094518,8.05356037,154.59,154.54,6.4704]
[1729322095522,8.05170713,154.59,154.55,6.4703]
[1729322096195,8.05170713,154.59,154.51,0.4377302]
[1729322096522,6.4697,154.57,154.52,6.4715]
[1729322099502,6.47,154.56,154.52,6.4715]
[1729322099708,6.47,154.56,154.51,23.0895302]
[1729322100621,31.82859113,154.58,154.51,16.6176302]
[1729322100826,6.4703,154.56,154.51,16.6176302]
[1729322101445,6.4703,154.56,154.51,23.0895302]
[1729322102999,23.776884,154.56,154.51,16.6176302]
[1729322104407,23.776884,154.56,154.51,0.4377302]
[1729322104603,6.4709,154.54,154.51,0.4377302]
[1729322104817,31.82226586,154.54,154.51,0.4377302]
[1729322105020,30.248484,154.52,154.51,0.4377302]
[1729322109110,50.248484,154.52,154.51,0.4377302]
[1729322110342,65.770584,154.52,154.51,0.4377302]
[1729322119553,72.5186659,154.52,154.51,0.4377302]
[1729322123122,81.05486318,154.52,154.51,0.4377302]
[1729322124751,81.05486318,154.52,154.51,3.02e-05]
[1729322125250,50.248884,154.51,154.5,21.5815302]
[1729322129041,58.78508128,154.51,154.5,21.5815302]
[1729322142358,15.00819728,154.51,154.5,21.5815302]
[1729322142566,6.472,154.51,154.5,21.5815302]
[1729322143767,50.248884,154.51,154.5,21.5815302]
[1729322149276,58.25859719,154.51,154.5,21.5815302]
[1729322150269,50.248884,154.51,154.5,21.5815302]
[1729322160360,58.78508128,154.51,154.5,21.5815302]
[1729322161451,58.78508128,154.51,154.5,15.6618302]
[1729322161658,58.78508128,154.51,154.5,9.6079302]
[1729322161863,58.78508128,154.51,154.5,3.4478302]
[1729322162166,58.78508128,154.51,154.5,3.02e-05]
[1729322166184,67.68518128,154.51,154.42,6.2972]
[1729322166357,6.4754,154.43,154.42,6.2972]
[1729322166559,6.4754,154.43,154.41,15.9485]
[1729322166560,6.4758,154.42,154.41,15.9485]
[1729322166762,26.4758,154.42,154.41,15.9485]
[1729322167980,6.4765,154.41,154.38,6.3668]
[1729322168480,23.776884,154.4,154.38,6.3668]
[1729322169476,23.776884,154.39,154.38,6.3668]
[1729322176186,30.253984,154.39,154.38,6.3668]
[1729322179491,30.253984,154.39,154.36,15.7718852]
[1729322184499,23.776884,154.39,154.36,15.7718852]
[1729322184792,30.253984,154.39,154.36,15.7718852]
[1729322191802,30.253984,154.39,154.36,0.6262852]
[1729322194504,26.4778,154.38,154.36,0.6262852]
[1729322194810,23.776884,154.37,154.36,0.6262852]
[1729322196608,30.254784,154.37,154.36,0.6262852]
[1729322199210,23.776884,154.37,154.36,0.6262852]
[1729322204406,23.776884,154.39,154.36,0.6262852]
[1729322204609,30.254784,154.37,154.36,0.6262852]
[1729322224209,50.254784,154.37,154.36,0.6262852]
[1729322231227,56.99389127,154.37,154.36,0.6262852]
[1729322231636,59.05218855,154.37,154.29,13.941165]
[1729322231837,30.257684,154.3,154.29,13.941165]
[1729322232507,8.01543191,154.33,154.29,13.941165]
[1729322232712,6.4805,154.31,154.29,13.941165]
[1729322239549,6.4801,154.32,154.29,13.941165]
[1729322240136,23.776884,154.33,154.29,13.941165]
[1729322240361,6.4807,154.31,154.29,13.941165]
[1729322240937,6.4808,154.3,154.29,13.941165]
[1729322241157,30.257684,154.3,154.29,13.941165]
[1729322241830,50.257684,154.3,154.29,13.941165]
[1729322248260,51.38226637,154.3,154.29,13.941165]
[1729322251860,58.11543864,154.3,154.29,13.941165]
[1729322274554,66.65163592,154.3,154.29,13.941165]
[1729322275364,74.62961841,154.3,154.29,13.941165]
[1729322275986,74.62961841,154.3,154.29,4.845965]
[1729322276165,66.65163592,154.3,154.29,6.5e-05]
[1729322276483,72.85400569,154.3,154.29,6.5e-05]
[1729322277257,16.2059,154.27,154.2,16.7118852]
[1729322277460,20.0,154.25,154.2,16.7118852]
[1729322277662,23.776884,154.24,154.2,16.7118852]
[1729322278386,6.4839,154.23,154.2,16.7118852]
[1729322279180,20.0,154.25,154.2,16.7118852]
[1729322279486,6.20526633,154.24,154.2,23.1965852]
[1729322279682,6.483,154.25,154.2,23.1965852]
[1729322279887,6.20533893,154.24,154.2,23.1965852]
[1729322280086,6.483,154.25,154.2,23.1965852]
[1729322280381,6.20597884,154.24,154.21,6.4846]
[1729322280562,6.20597884,154.24,154.2,32.9244852]
[1729322280563,8.00194202,154.28,154.23,15.7236]
[1729322280765,6.20586887,154.27,154.24,6.483]
[1729322281089,6.20586887,154.26,154.24,6.483]
[1729322281389,6.4813,154.29,154.24,6.483]
[1729322281567,6.20609845,154.28,154.25,6.4825]
[1729322281767,6.4811,154.3,154.25,6.4825]
[1729322285082,12.69158666,154.29,154.24,22.6913]
[1729322285293,6.21152578,154.28,154.24,22.6913]
[1729322285474,8.01188989,154.31,154.24,22.6913]
[1729322285672,6.4815,154.29,154.24,22.6913]
[1729322286180,14.49338989,154.29,154.24,22.6913]
[1729322286386,8.01188989,154.28,154.24,22.6913]
[1729322286693,6.4822,154.27,154.23,15.7236]
[1729322288569,14.49408989,154.27,154.23,15.7236]
[1729322288766,6.4822,154.27,154.23,5.759352]
[1729322289595,6.21861533,154.26,154.23,5.759352]
[1729322289786,6.21861533,154.25,154.23,5.759352]
[1729322290084,6.21861533,154.24,154.23,5.759352]
[1729322290298,8.01188989,154.28,154.24,6.4829]
[1729322290471,6.2192631,154.27,154.23,12.243052]
[1729322290676,6.2192631,154.26,154.24,16.2082]
[1729322290878,6.2192631,154.25,154.24,16.2082]
[1729322291588,6.2192631,154.25,154.23,5.759352]
[1729322291786,6.2192631,154.24,154.23,5.759352]
[1729322291990,6.2192631,154.24,154.22,6.0936]
[1729322292293,6.4829,154.25,154.22,6.0936]
[1729322292591,6.21876359,154.24,154.21,16.2113]
[1729322292897,6.4829,154.25,154.21,16.2113]
[1729322293397,6.21901202,154.24,154.21,16.2113]
[1729322293576,6.21901202,154.23,154.21,16.2113]
[1729322293776,6.4829,154.25,154.21,16.2113]
[1729322293985,6.21797332,154.24,154.21,16.2113]
[1729322294173,6.21797332,154.23,154.21,16.2113]
[1729322294372,6.4829,154.25,154.21,16.2113]
[1729322294586,12.70058447,154.24,154.2,7.1111852]
[1729322294794,6.21718447,154.23,154.2,0.6262852]
[1729322296572,8.01654177,154.27,154.2,0.6262852]
[1729322296803,16.2043,154.28,154.2,0.6262852]
[1729322296804,6.484,154.23,154.2,0.6262852]
[1729322296985,6.21610575,154.22,154.2,0.6262852]
[1729322297493,6.484,154.23,154.2,0.6262852]
[1729322297692,6.21494848,154.22,154.2,0.6262852]
[1729322297871,6.484,154.23,154.2,0.6262852]
[1729322298076,6.21481977,154.22,154.2,0.6262852]
[1729322298270,6.484,154.23,154.2,0.6262852]
[1729322298699,6.21338483,154.22,154.2,0.6262852]
[1729322298900,6.4839,154.23,154.2,0.6262852]
[1729322299128,6.21323728,154.22,154.2,0.6262852]
[1729322299277,6.4834,154.24,154.2,0.6262852]
[1729322299594,12.69626067,154.23,154.2,0.6262852]
[1729322299781,6.21246067,154.22,154.2,0.6262852]
[1729322300189,12.69666067,154.22,154.2,0.6262852]
[1729322300410,6.4842,154.22,154.2,0.6262852]
[1729322301093,23.776884,154.24,154.2,0.6262852]
[1729322301402,12.69522637,154.23,154.2,0.6262852]
[1729322301608,6.21061658,154.22,154.2,0.6262852]
[1729322301801,6.4838,154.23,154.2,0.6262852]
[1729322302105,6.2106169,154.22,154.2,0.6262852]
[1729322302302,6.4838,154.23,154.2,0.6262852]
[1729322302507,6.20987019,154.22,154.2,0.6262852]
[1729322302686,6.4838,154.23,154.2,0.6262852]
[1729322302886,6.20971714,154.22,154.2,0.6262852]
[1729322303086,6.4838,154.23,154.2,0.6262852]
[1729322305104,20.0,154.24,154.2,0.6262852]
[1729322305287,6.20833279,154.23,154.2,0.6262852]
[1729322305487,14.48815493,154.25,154.2,7.1111852]
[1729322305693,6.20799524,154.24,154.2,7.1111852]
[1729322305887,6.20799524,154.23,154.2,7.1111852]
[1729322306083,14.48815493,154.25,154.2,7.1111852]
[1729322306303,6.20794971,154.24,154.21,6.4844]
[1729322306503,14.48725493,154.27,154.22,6.4842]
[1729322306805,6.20708185,154.26,154.22,22.6937]
[1729322307107,6.20708185,154.25,154.22,22.6937]
[1729322307279,6.4825,154.26,154.22,22.6937]
[1729322307609,6.20736875,154.25,154.22,22.6937]
[1729322307802,6.4825,154.26,154.22,22.6937]
[1729322307991,6.20716789,154.25,154.22,22.6937]
[1729322308194,6.4825,154.26,154.22,22.6937]
[1729322308402,6.20713365,154.25,154.22,22.6937]
[1729322308584,6.4825,154.26,154.22,22.6937]
[1729322308906,6.20750809,154.25,154.22,22.6937]
[1729322309089,6.4825,154.26,154.22,22.6937]
[1729322309280,6.20728816,154.25,154.22,22.6937]
[1729322309484,6.4831,154.25,154.2,7.1112852]
[1729322309898,6.207775,154.24,154.2,7.1112852]
[1729322310099,6.4831,154.25,154.2,7.1112852]
[1729322310281,6.20782395,154.24,154.2,7.1112852]
[1729322310486,6.4831,154.25,154.2,7.1112852]
[1729322310685,6.20802621,154.24,154.2,7.1112852]
[1729322310887,6.4831,154.25,154.2,7.1112852]
[1729322311094,6.20825951,154.24,154.2,7.1112852]
[1729322311296,6.4831,154.25,154.2,7.1112852]
[1729322311502,6.2083904,154.24,154.2,7.1112852]
[1729322311705,6.4834,154.24,154.2,7.1112852]
[1729322314509,6.4834,154.24,154.2,0.6262852]
[1729322314810,6.20872013,154.23,154.2,0.6262852]
[1729322315013,6.4838,154.23,154.2,0.6262852]
[1729322317496,8.00515493,154.26,154.2,0.6262852]
[1729322317697,6.4833,154.25,154.2,7.1112852]
[1729322317896,12.69054593,154.24,154.2,7.1112852]
[1729322318219,6.4834,154.24,154.2,7.1112852]
[1729322318427,6.2071279,154.23,154.2,7.1112852]
[1729322318718,6.4834,154.24,154.2,7.1112852]
[1729322319501,6.20743555,154.23,154.2,0.6262852]
[1729322319704,6.4834,154.24,154.2,0.6262852]
[1729322319908,6.20743853,154.23,154.2,0.6262852]
[1729322320106,6.4834,154.24,154.2,0.6262852]
[1729322320307,6.20760324,154.23,154.2,0.6262852]
[1729322320614,6.4834,154.24,154.2,0.6262852]
[1729322320818,6.20775921,154.23,154.2,0.6262852]
[1729322321004,6.4834,154.24,154.2,0.6262852]
[1729322321206,6.20778436,154.23,154.2,0.6262852]
[1729322321416,8.00515493,154.26,154.2,0.6262852]
[1729322321631,6.4842,154.23,154.2,0.6262852]
[1729322322226,6.4834,154.24,154.2,0.6262852]
[1729322322407,6.2083219,154.23,154.2,7.1111852]
[1729322322604,20.0,154.25,154.2,0.6262852]
[1729322322796,6.20834016,154.24,154.22,16.2105]
[1729322322992,6.4827,154.26,154.22,16.2105]
[1729322323220,20.696188,154.26,154.22,16.2105]
[1729322323405,6.20833307,154.25,154.22,16.2105]
[1729322323602,6.4827,154.26,154.22,16.2105]
[1729322324517,6.4832,154.25,154.2,7.1112852]
[1729322325321,6.20814453,154.24,154.2,7.1112852]
[1729322325521,6.4832,154.25,154.2,7.1112852]
[1729322325818,6.20562792,154.24,154.2,7.1112852]
[1729322326017,6.4832,154.25,154.2,7.1112852]
[1729322326224,6.20571539,154.24,154.2,7.1112852]
[1729322326522,6.4837,154.24,154.2,0.6262852]
[1729322328007,6.483,154.25,154.2,7.1109852]
[1729322328227,6.20613845,154.24,154.2,7.1109852]
[1729322328417,6.483,154.25,154.2,7.1109852]
[1729322328723,6.20683781,154.24,154.2,7.1109852]
[1729322329028,6.483,154.25,154.2,7.1109852]
[1729322329211,6.20684722,154.24,154.2,7.1109852]
[1729322329403,6.20795703,154.23,154.2,0.6262852]
[1729322329602,6.4837,154.24,154.2,0.6262852]
[1729322329807,6.20798671,154.23,154.2,0.6262852]